bitfinex-derivatives/quotes_BTCF0:USTF0_20250527
["timestamp","ask_amount","ask_price","bid_price","bid_amount"]
[1748375590946,1.49798231,109960.0,109950.0,0.65112485]
[1748375592937,1.13714231,109960.0,109950.0,1.01192485]
[1748375593142,1.49794231,109960.0,109950.0,0.62468821]
[1748375593643,1.13714231,109960.0,109950.0,0.62468821]
[1748375597237,0.71342231,109960.0,109950.0,0.62468821]
[1748375597435,1.13710231,109960.0,109950.0,0.74698519]
[1748375597840,1.13722231,109960.0,109950.0,1.16059465]
[1748375598549,1.13722231,109960.0,109950.0,0.74698519]
[1748375598753,1.13722231,109960.0,109950.0,1.10778519]
[1748375599141,1.13722231,109960.0,109950.0,0.78664443]
[1748375599955,1.13722231,109960.0,109950.0,0.53788834]
[1748375599956,1.67981581,109960.0,109950.0,0.53788834]
[1748375600151,1.31901571,109960.0,109950.0,0.62474443]
[1748375600451,1.13722231,109960.0,109950.0,0.62474443]
[1748375601150,1.31901571,109960.0,109950.0,0.62474443]
[1748375601544,1.13722231,109960.0,109950.0,0.62474443]
[1748375601748,1.31901571,109960.0,109950.0,0.62474443]
[1748375602250,1.13722231,109960.0,109950.0,0.62474443]
[1748375603452,1.49802231,109960.0,109950.0,0.70514443]
[1748375604062,1.49802231,109960.0,109950.0,0.78514443]
[1748375604450,1.67981611,109960.0,109950.0,0.62474443]
[1748375604749,1.67981611,109960.0,109950.0,0.37598834]
[1748375604949,1.67981611,109960.0,109950.0,0.31492419]
[1748375605144,1.67981611,109960.0,109950.0,0.31504419]
[1748375607065,1.67981611,109960.0,109950.0,0.56380028]
[1748375607453,1.67981591,109960.0,109950.0,0.56380028]
[1748375610062,1.31901591,109960.0,109950.0,0.56380028]
[1748375610558,1.31901591,109960.0,109950.0,0.6558505]
[1748375610559,0.89533591,109960.0,109950.0,0.6558505]
[1748375610765,1.13710231,109960.0,109950.0,0.6558505]
[1748375610954,1.49778231,109960.0,109950.0,0.5769505]
[1748375611263,1.67969591,109960.0,109950.0,0.40398314]
[1748375611461,1.67969591,109960.0,109950.0,0.40386314]
[1748375612061,1.67969591,109960.0,109950.0,0.40398314]
[1748375613864,1.67969591,109960.0,109950.0,0.32158314]
[1748375614064,1.67965591,109960.0,109950.0,0.32158314]
[1748375614566,1.67965591,109960.0,109950.0,0.40438314]
[1748375615464,1.67965591,109960.0,109950.0,0.65313923]
[1748375618261,1.67965591,109960.0,109950.0,0.40438314]
[1748375618567,1.67965591,109960.0,109950.0,0.40438334]
[1748375619567,1.404092,109960.0,109950.0,0.13977294]
[1748375619774,2.10409236,109960.0,109950.0,0.00012]
[1748375619970,2.40945001,109960.0,109950.0,0.01995873]
[1748375620161,2.35409236,109960.0,109950.0,0.00012]
[1748375620355,0.1818103,109950.0,109940.0,0.01997499]
[1748375620561,1.28416639,109950.0,109940.0,0.00013626]
[1748375620767,1.7102964,109950.0,109940.0,0.00013626]
[1748375621168,1.4602964,109950.0,109940.0,0.00025626]
[1748375621366,1.4602964,109950.0,109940.0,0.00013626]
[1748375621572,1.4602964,109950.0,109940.0,0.00025626]
[1748375621875,1.47579195,109950.0,109940.0,0.00125626]
[1748375622463,1.47579195,109950.0,109940.0,0.00113626]
[1748375622464,1.53250056,109950.0,109940.0,0.00113626]
[1748375622662,1.53350056,109950.0,109940.0,0.00125626]
[1748375622863,1.53550056,109950.0,109940.0,0.00125626]
[1748375623269,1.53650056,109950.0,109940.0,0.00225626]
[1748375624475,1.45132656,109950.0,109940.0,0.00225626]
[1748375628362,1.20257047,109950.0,109940.0,0.00225626]
[1748375628562,1.45132656,109950.0,109940.0,0.00225626]
[1748375630779,1.45574887,109950.0,109940.0,0.00225626]
[1748375632575,1.81654887,109950.0,109940.0,0.00225626]
[1748375633367,1.81654887,109950.0,109940.0,0.00213626]
[1748375633569,1.81654887,109950.0,109940.0,0.00225626]
[1748375635477,2.34050887,109950.0,109940.0,0.00225626]
[1748375635665,2.24955286,109950.0,109940.0,0.00225626]
[1748375642874,2.32945286,109950.0,109940.0,0.00225626]
[1748375644390,2.44887426,109950.0,109940.0,0.00213626]
[1748375644577,2.47698534,109950.0,109940.0,0.00225626]
[1748375645677,2.47698534,109950.0,109920.0,0.07794374]
[1748375645678,0.1818432,109930.0,109920.0,0.07794374]
[1748375645878,3.09458921,109930.0,109920.0,0.07794374]
[1748375646086,3.34008921,109930.0,109920.0,0.07806374]
[1748375648082,3.34108921,109930.0,109920.0,0.08006374]
[1748375648586,3.4260941,109930.0,109920.0,0.08006374]
[1748375648781,3.4270941,109930.0,109920.0,0.08006374]
[1748375649382,3.4280941,109930.0,109920.0,0.08006374]
[1748375649576,3.42817958,109930.0,109920.0,0.08006374]
[1748375650387,2.51056349,109930.0,109920.0,0.08006374]
[1748375650583,2.4255586,109930.0,109920.0,0.26325535]
[1748375650887,2.7921632,109930.0,109920.0,0.26325535]
[1748375651087,2.4313632,109930.0,109920.0,0.24346374]
[1748375651383,2.4313632,109930.0,109920.0,0.28971832]
[1748375651578,2.4313632,109930.0,109920.0,0.26327437]
[1748375652174,2.4313632,109930.0,109920.0,0.24346374]
[1748375652375,2.4313632,109930.0,109920.0,0.26327459]
[1748375652572,2.68011929,109930.0,109920.0,0.26327459]
[1748375652887,2.15619929,109930.0,109920.0,0.26327459]
[1748375653080,2.67991929,109930.0,109920.0,0.26327459]
[1748375653382,2.25659929,109930.0,109920.0,0.26327459]
[1748375653590,2.67991929,109930.0,109920.0,0.26327459]
[1748375653886,2.67991929,109930.0,109920.0,0.44513439]
[1748375654186,2.4311632,109930.0,109920.0,0.26327459]
[1748375655486,2.4311632,109930.0,109920.0,0.26327507]
[1748375658186,2.4311632,109930.0,109920.0,0.44513497]
[1748375658490,2.4311232,109930.0,109920.0,0.47157892]
[1748375659887,1.6470432,109930.0,109920.0,0.47157892]
[1748375660098,2.0703232,109930.0,109920.0,0.47157892]
[1748375660285,2.07474551,109930.0,109920.0,0.47157892]
[1748375662082,2.43554551,109930.0,109920.0,0.47157892]
[1748375662277,2.01226551,109930.0,109920.0,0.47157892]
[1748375662482,2.43550551,109930.0,109920.0,0.47157892]
[1748375663484,1.36922231,109930.0,109920.0,1.06132368]
[1748375663684,1.46962231,109930.0,109920.0,1.1482804]
[1748375663887,1.89286231,109930.0,109920.0,1.1482804]
[1748375664479,1.36922231,109930.0,109920.0,1.16143692]
[1748375664682,1.89286231,109930.0,109920.0,1.16143692]
[1748375665289,0.33742231,109930.0,109920.0,1.75116501]
[1748375665690,0.00013626,109940.0,109930.0,0.1818434]
[1748375665991,0.77333626,109940.0,109930.0,1.13546949]
[1748375666189,0.77333626,109940.0,109930.0,1.47643349]
[1748375666983,0.77433626,109940.0,109930.0,1.47743349]
[1748375667183,0.35113626,109940.0,109930.0,1.47743349]
[1748375667385,0.95712316,109940.0,109930.0,1.47943349]
[1748375668491,0.95712306,109940.0,109930.0,0.70787]
[1748375668697,1.20587915,109940.0,109930.0,0.87647838]
[1748375668988,1.37227915,109940.0,109930.0,0.72098818]
[1748375669190,1.73307915,109940.0,109930.0,0.4176166]
[1748375669381,1.73307915,109940.0,109930.0,0.4174966]
[1748375669584,1.48432306,109940.0,109930.0,0.4176166]
[1748375670291,1.48432306,109940.0,109930.0,0.1493532]
[1748375670292,1.73307915,109940.0,109930.0,0.1493532]
[1748375670492,1.73307915,109940.0,109930.0,0.003]
[1748375671090,1.73307915,109940.0,109930.0,0.00312]
[1748375671396,1.73307915,109940.0,109930.0,0.003]
[1748375671598,1.73307915,109940.0,109930.0,0.00312]
[1748375672095,0.1818528,109930.0,109920.0,0.2273189]
[1748375672295,1.4579312,109930.0,109920.0,0.2273189]
[1748375672595,1.2760784,109930.0,109920.0,0.2273189]
[1748375673299,1.2770784,109930.0,109920.0,0.2303189]
[1748375673489,1.2770784,109930.0,109920.0,0.2333189]
[1748375673682,1.02932231,109930.0,109920.0,0.2333189]
[1748375673883,0.92892231,109930.0,109920.0,0.3153189]
[1748375674088,1.01210231,109930.0,109920.0,0.62042819]
[1748375674595,1.01110231,109930.0,109920.0,0.61842819]
[1748375676302,0.32542231,109930.0,109920.0,0.70940019]
[1748375676484,0.74850231,109930.0,109920.0,1.10973517]
[1748375676889,0.74850231,109930.0,109920.0,1.09719523]
[1748375677405,0.91130231,109930.0,109920.0,1.1235604]
[1748375677789,0.91130231,109930.0,109920.0,1.09719523]
[1748375677998,0.91130231,109930.0,109920.0,1.00622323]
[1748375678496,0.91130231,109930.0,109920.0,0.99240997]
[1748375678798,0.91130231,109930.0,109920.0,0.40922558]
[1748375679000,0.91130231,109930.0,109920.0,0.40934558]
[1748375679399,0.91130231,109930.0,109920.0,0.49364558]
[1748375679606,0.91130231,109930.0,109920.0,0.41164558]
[1748375679814,0.91130231,109930.0,109920.0,0.41152558]
[1748375680104,0.91130231,109930.0,109920.0,0.41164558]
[1748375680300,0.48822231,109930.0,109920.0,0.66040167]
[1748375680498,0.48822231,109930.0,109920.0,1.10420167]
[1748375680695,0.48822231,109930.0,109920.0,1.07782997]
[1748375681802,0.91126231,109930.0,109920.0,1.07782997]
[1748375682501,0.48822231,109930.0,109920.0,1.07782997]
[1748375682703,1.01162231,109930.0,109920.0,1.07782997]
[1748375682899,0.32542231,109930.0,109920.0,1.07782997]
[1748375683087,0.32542231,109930.0,109920.0,1.37802308]
[1748375683293,0.74842231,109930.0,109920.0,1.37802308]
[1748375683694,0.74842231,109930.0,109920.0,1.43079308]
[1748375683905,0.74842231,109930.0,109920.0,1.37802308]
[1748375684604,0.74842231,109930.0,109920.0,1.18203699]
[1748375684800,0.74842231,109930.0,109920.0,1.12926699]
[1748375685001,0.74842231,109930.0,109920.0,1.19567687]
[1748375685308,0.74838231,109930.0,109920.0,1.69443296]
[1748375687200,0.32542231,109930.0,109920.0,1.69443296]
[1748375690312,0.29868811,109930.0,109920.0,1.39166296]
[1748375690510,0.27352661,109930.0,109920.0,1.39166296]
[1748375690710,0.24700671,109930.0,109920.0,1.39166296]
[1748375690900,0.16738331,109930.0,109920.0,1.39166296]
[1748375691110,1e-08,109930.0,109920.0,1.39166296]
[1748375691806,2e-08,109930.0,109920.0,1.14290687]
[1748375692110,2e-08,109930.0,109920.0,1.20881821]
[1748375692312,2e-08,109930.0,109920.0,1.20869821]
[1748375692505,0.17000002,109930.0,109920.0,1.20881821]
[1748375693709,0.25670002,109930.0,109920.0,1.20881821]
[1748375694596,0.32670002,109930.0,109920.0,1.20881821]
[1748375697205,0.32670002,109930.0,109920.0,1.11784621]
[1748375697408,0.32670002,109930.0,109920.0,1.11772621]
[1748375697602,0.32670002,109930.0,109920.0,1.11784621]
[1748375697909,0.32670002,109930.0,109920.0,1.1045912]
[1748375698216,0.58670002,109930.0,109920.0,1.0217112]
[1748375700116,0.58670002,109930.0,109920.0,1.1063112]
[1748375700311,0.4172,109930.0,109920.0,1.35506729]
[1748375700514,0.00025626,109940.0,109930.0,0.1818434]
[1748375700716,0.32025626,109940.0,109930.0,1.23317314]
[1748375701105,0.32025626,109940.0,109930.0,0.78807314]
[1748375701317,0.50208316,109940.0,109930.0,0.53931705]
[1748375701515,0.60232316,109940.0,109930.0,0.36141877]
[1748375701720,0.42049626,109940.0,109930.0,0.36142364]
[1748375701915,0.78129626,109940.0,109930.0,0.36242364]
[1748375702121,0.78229626,109940.0,109930.0,0.44264364]
[1748375702322,0.78329626,109940.0,109930.0,0.44352364]
[1748375702512,0.78329626,109940.0,109930.0,0.44364364]
[1748375703021,0.96512316,109940.0,109930.0,0.36354364]
[1748375703217,0.96512316,109940.0,109930.0,0.38993866]
[1748375703720,1.13872316,109940.0,109930.0,0.38993866]
[1748375703919,1.63747925,109940.0,109930.0,0.02851502]
[1748375704222,1.78519865,109940.0,109930.0,0.00212]
[1748375704427,1.87020354,109940.0,109930.0,0.002]
[1748375704721,1.87020354,109940.0,109930.0,0.00212]
[1748375704722,1.69423465,109940.0,109930.0,0.00212]
[1748375704924,1.69865696,109940.0,109930.0,0.002]
[1748375705115,1.69865696,109940.0,109930.0,0.00212]
[1748375705933,1.69865696,109940.0,109930.0,0.002]
[1748375706222,1.44865696,109940.0,109930.0,0.00212]
[1748375708529,1.87149696,109940.0,109930.0,0.00212]
[1748375710424,0.1818599,109920.0,109910.0,0.02653128]
[1748375710617,2.05529599,109920.0,109910.0,0.05653128]
[1748375710818,3.25721599,109920.0,109910.0,0.00013626]
[1748375711218,3.25721599,109920.0,109910.0,0.00025626]
[1748375711529,3.25821599,109920.0,109910.0,0.00313626]
[1748375711825,3.25821599,109920.0,109910.0,0.00325626]
[1748375712022,2.8286,109920.0,109910.0,0.44488885]
[1748375712224,3.0104599,109920.0,109910.0,0.52738885]
[1748375712418,3.0104599,109920.0,109910.0,0.60938885]
[1748375712922,3.0104599,109920.0,109910.0,0.36063276]
[1748375713327,3.25921599,109920.0,109910.0,0.19601286]
[1748375713512,3.25921599,109920.0,109910.0,0.01425626]
[1748375713713,3.0104599,109920.0,109910.0,0.01425626]
[1748375715816,3.0104599,109920.0,109910.0,0.19613286]
[1748375716126,3.0104599,109920.0,109910.0,0.01425626]
[1748375716329,3.0104599,109920.0,109910.0,0.28053286]
[1748375716515,3.0104599,109920.0,109910.0,0.09865626]
[1748375718123,3.0104599,109920.0,109910.0,0.08865626]
[1748375718517,3.0104599,109920.0,109910.0,0.00425626]
[1748375719424,3.0104599,109920.0,109910.0,0.00413626]
[1748375719725,3.0104599,109920.0,109910.0,0.00425626]
[1748375720321,3.0104599,109920.0,109910.0,0.08705626]
[1748375721129,3.01488221,109920.0,109910.0,0.08705626]
[1748375724225,2.59204221,109920.0,109910.0,0.26893276]
[1748375724436,3.01488221,109920.0,109910.0,0.26893276]
[1748375724734,3.01488221,109920.0,109910.0,0.35333276]
[1748375725323,3.01488221,109920.0,109910.0,0.17145626]
[1748375726033,3.01488221,109920.0,109910.0,0.35333276]
[1748375726224,3.01488221,109920.0,109910.0,0.17145626]
[1748375726424,3.01488221,109920.0,109910.0,0.35333276]
[1748375726818,3.01488221,109920.0,109910.0,0.6084856]
[1748375726819,2.92930221,109920.0,109910.0,0.6084856]
[1748375727022,2.92930221,109920.0,109910.0,0.36333276]
[1748375727230,2.50646221,109920.0,109910.0,0.18145626]
[1748375727437,3.01760221,109920.0,109910.0,0.36333276]
[1748375727833,3.01760221,109920.0,109910.0,0.18145626]
[1748375728436,3.27275505,109920.0,109910.0,0.08705626]
[1748375728826,3.27275505,109920.0,109910.0,0.00413626]
[1748375729139,3.27275505,109920.0,109910.0,0.00425626]
[1748375729527,3.27275505,109920.0,109910.0,0.08545626]
[1748375730537,3.01760221,109920.0,109910.0,0.08545626]
[1748375730724,3.27275505,109920.0,109910.0,0.08545626]
[1748375732023,3.27275505,109920.0,109910.0,0.10525977]
[1748375733239,3.32951045,109920.0,109910.0,0.02405977]
[1748375733939,3.32323513,109920.0,109910.0,0.10835977]
[1748375734334,3.40824002,109920.0,109910.0,0.10835977]
[1748375735935,3.40824002,109920.0,109910.0,0.10838091]
[1748375736137,2.98540002,109920.0,109910.0,0.10838091]
[1748375736438,3.40824002,109920.0,109910.0,0.10838091]
[1748375738340,3.40824002,109920.0,109910.0,0.01270754]
[1748375738341,3.78776243,109920.0,109910.0,0.01270754]
[1748375738526,0.1818932,109900.0,109890.0,0.01982863]
[1748375738725,0.1819098,109890.0,109880.0,0.1718]
[1748375738920,1.39298732,109890.0,109880.0,0.0887]
[1748375739127,1.40216154,109890.0,109880.0,0.0887]
[1748375739328,1.40216154,109890.0,109880.0,0.08882]
[1748375741024,1.40216154,109890.0,109880.0,0.00012]
[1748375741025,1.40316154,109890.0,109880.0,0.00012]
[1748375741338,1.40316154,109890.0,109870.0,0.00273038]
[1748375741339,0.1819263,109880.0,109870.0,0.00273038]
[1748375741534,1.81434382,109880.0,109870.0,0.00273038]
[1748375742042,1.81434382,109880.0,109870.0,0.08613038]
[1748375742632,1.81434382,109880.0,109870.0,0.08625038]
[1748375742946,1.81534382,109880.0,109870.0,0.08625038]
[1748375743640,2.84734382,109880.0,109870.0,0.08625038]
[1748375744040,2.84834382,109880.0,109870.0,0.08625038]
[1748375745446,2.84834382,109880.0,109870.0,0.00285038]
[1748375746035,2.5994663,109880.0,109870.0,0.00285038]
[1748375746238,2.84834382,109880.0,109870.0,0.00285038]
[1748375748433,2.84834382,109880.0,109870.0,0.00273038]
[1748375748632,2.84834382,109880.0,109870.0,0.00285038]
[1748375748945,2.84834382,109880.0,109870.0,0.00273038]
[1748375749148,2.84834382,109880.0,109870.0,0.00285038]
[1748375750444,2.84834382,109880.0,109870.0,0.01562787]
[1748375750750,2.85276613,109880.0,109870.0,0.0157479]
[1748375751049,2.85276613,109880.0,109870.0,0.10204787]
[1748375752248,2.85276613,109880.0,109870.0,0.10204561]
[1748375753145,2.42992613,109880.0,109870.0,0.10204561]
[1748375753338,2.85284613,109880.0,109870.0,0.10204486]
[1748375754352,2.85284613,109880.0,109870.0,0.10204471]
[1748375754552,2.85284613,109880.0,109870.0,0.10204472]
[1748375755052,2.60392861,109880.0,109870.0,0.10204472]
[1748375755345,2.85280613,109880.0,109870.0,0.17665038]
[1748375755554,2.85280613,109880.0,109870.0,0.18954515]
[1748375755744,2.85280613,109880.0,109870.0,0.17665038]
[1748375755944,2.85280613,109880.0,109870.0,0.18954625]
[1748375756748,2.85280613,109880.0,109870.0,0.10204625]
[1748375757437,2.85280613,109880.0,109870.0,0.10204763]
[1748375757643,2.85280613,109880.0,109870.0,0.08915038]
[1748375757843,2.85280613,109880.0,109870.0,0.10204766]
[1748375758348,2.85280613,109880.0,109870.0,0.10205014]
[1748375759146,2.85280613,109880.0,109870.0,0.10205246]
[1748375759354,2.85280613,109880.0,109870.0,0.10205247]
[1748375760239,3.10168365,109880.0,109870.0,0.01575247]
[1748375760447,3.15849168,109880.0,109870.0,0.01563247]
[1748375760753,3.24370373,109880.0,109870.0,0.01600414]
[1748375760955,3.24370373,109880.0,109870.0,0.01600897]
[1748375761137,3.24370373,109880.0,109870.0,0.00285038]
[1748375761338,0.1819594,109860.0,109850.0,0.00091029]
[1748375761555,1.73211254,109860.0,109850.0,0.00091029]
[1748375761760,2.04211254,109860.0,109850.0,0.00091029]
[1748375762055,2.30036597,109860.0,109850.0,0.00091029]
[1748375762247,2.30036597,109860.0,109850.0,0.00103029]
[1748375762640,2.30236597,109860.0,109850.0,0.00103029]
[1748375762842,1.77932597,109860.0,109850.0,0.00103029]
[1748375763157,2.30240597,109860.0,109850.0,0.00103029]
[1748375764556,2.38600597,109860.0,109850.0,0.00103029]
[1748375766049,2.05217502,109860.0,109850.0,0.00103029]
[1748375766252,2.30105254,109860.0,109850.0,0.00103029]
[1748375766556,2.38600597,109860.0,109850.0,0.00103029]
[1748375767658,1.86292597,109860.0,109850.0,0.00103029]
[1748375767851,2.38720597,109860.0,109850.0,0.00103029]
[1748375771052,2.38720597,109860.0,109850.0,0.00091029]
[1748375771249,2.38720597,109860.0,109850.0,0.00103029]
[1748375773450,2.38720597,109860.0,109850.0,0.01420226]
[1748375773657,2.38720597,109860.0,109850.0,0.01420245]
[1748375773850,1.61404845,109860.0,109850.0,0.01420251]
[1748375774162,2.30205254,109860.0,109850.0,0.01420251]
[1748375774361,2.30205254,109860.0,109850.0,0.27270251]
[1748375774553,2.30205254,109860.0,109850.0,0.25953029]
[1748375774859,2.30205254,109860.0,109850.0,0.27263071]
[1748375775262,2.30213254,109860.0,109850.0,0.27263071]
[1748375775462,1.44549502,109860.0,109850.0,0.27263071]
[1748375775657,1.3159994,109860.0,109850.0,0.27263071]
[1748375775863,1.2155594,109860.0,109850.0,0.27263071]
[1748375776059,1.3159994,109860.0,109850.0,0.27263071]
[1748375776265,1.7398394,109860.0,109850.0,0.27263071]
[1748375776459,1.7397994,109860.0,109850.0,0.52128048]
[1748375776859,1.7397994,109860.0,109850.0,0.70325658]
[1748375777163,1.7397994,109860.0,109850.0,0.69038391]
[1748375777366,1.7398394,109860.0,109850.0,0.70317815]
[1748375777563,1.7398394,109860.0,109850.0,0.52120205]
[1748375777764,1.7398394,109860.0,109850.0,0.27232453]
[1748375777965,1.7397594,109860.0,109850.0,0.27232453]
[1748375778360,1.7397594,109860.0,109850.0,0.27232594]
[1748375779066,1.98863692,109860.0,109850.0,0.27232594]
[1748375779267,2.16323692,109860.0,109850.0,0.27232594]
[1748375779963,2.16323692,109860.0,109850.0,0.27238535]
[1748375781468,2.16323692,109860.0,109850.0,0.2723882]
[1748375782477,2.16323692,109860.0,109850.0,0.27239082]
[1748375782768,1.7397594,109860.0,109850.0,0.27239082]
[1748375783163,1.7397594,109860.0,109850.0,0.11825939]
[1748375783468,1.8270594,109860.0,109850.0,0.11825939]
[1748375783661,1.8270594,109860.0,109850.0,0.10539886]
[1748375783862,1.8270594,109860.0,109850.0,0.11821146]
[1748375785062,1.8270594,109860.0,109850.0,0.11821473]
[1748375786258,1.8270594,109860.0,109850.0,0.20231473]
[1748375786466,1.8270594,109860.0,109850.0,0.18949886]
[1748375786671,1.8270594,109860.0,109850.0,0.20231955]
[1748375787075,1.8270594,109860.0,109850.0,0.20231951]
[1748375787673,1.8270594,109860.0,109850.0,0.18949886]
[1748375787868,1.8270594,109860.0,109850.0,0.20232002]
[1748375788074,2.07593692,109860.0,109850.0,0.20232002]
[1748375788676,2.07593692,109860.0,109850.0,0.20232269]
[1748375789777,1.8270594,109860.0,109850.0,0.20232269]
[1748375790975,1.9117594,109860.0,109850.0,0.20232269]
[1748375791283,1.91618171,109860.0,109850.0,0.20232269]
[1748375791781,1.91618171,109860.0,109850.0,0.20237947]
[1748375792178,1.9117594,109860.0,109850.0,0.20237947]
[1748375792783,1.9117594,109860.0,109850.0,0.20237985]
[1748375793285,2.00108171,109860.0,109850.0,0.20237985]
[1748375795083,2.00108171,109860.0,109850.0,0.20238102]
[1748375796184,2.24995923,109860.0,109850.0,0.20238102]
[1748375796581,2.30659485,109860.0,109850.0,0.20238102]
[1748375796880,2.00108171,109860.0,109850.0,0.20238102]
[1748375797385,1.9966594,109860.0,109850.0,0.20238102]
[1748375797582,1.9966594,109860.0,109850.0,0.18949886]
[1748375798086,1.9966594,109860.0,109850.0,0.20233397]
[1748375798282,1.9966594,109860.0,109850.0,0.20233398]
[1748375798485,1.9966594,109860.0,109850.0,0.22215473]
[1748375799283,1.9966594,109860.0,109850.0,0.2221529]
[1748375799690,2.05329502,109860.0,109850.0,0.2221529]
[1748375799885,2.05329502,109860.0,109850.0,0.22215214]
[1748375800286,2.05771733,109860.0,109850.0,0.18949886]
[1748375800486,2.05771733,109860.0,109850.0,0.2222106]
[1748375800682,2.30659485,109860.0,109850.0,0.2222106]
[1748375801590,2.30659485,109860.0,109850.0,0.22221527]
[1748375802193,2.30659485,109860.0,109850.0,0.20513641]
[1748375802486,2.30659485,109860.0,109850.0,0.03271641]
[1748375802683,2.30659485,109860.0,109850.0,0.03283641]
[1748375802884,2.30659485,109860.0,109850.0,0.03284082]
[1748375803185,2.30659485,109860.0,109850.0,0.11484086]
[1748375803390,2.30659485,109860.0,109850.0,0.10193892]
[1748375803591,2.30659485,109860.0,109850.0,0.11484548]
[1748375804084,2.30659485,109860.0,109850.0,0.10193892]
[1748375804389,2.30659485,109860.0,109850.0,0.11484548]
[1748375804587,2.39154828,109860.0,109850.0,0.20314548]
[1748375805196,2.14267076,109860.0,109850.0,0.20314548]
[1748375805488,2.13824845,109860.0,109850.0,0.22953074]
[1748375805687,2.13744845,109860.0,109850.0,0.22953074]
[1748375806290,1.71448845,109860.0,109850.0,0.22953074]
[1748375806491,2.13744845,109860.0,109850.0,0.22953074]
[1748375806686,1.71448845,109860.0,109850.0,0.20971182]
[1748375806887,2.05249502,109860.0,109850.0,0.24916034]
[1748375807395,2.05249502,109860.0,109850.0,0.24915763]
[1748375807988,2.05249502,109860.0,109850.0,0.23633581]
[1748375808192,2.05249502,109860.0,109850.0,0.24914072]
[1748375808393,2.05691733,109860.0,109850.0,0.24914072]
[1748375809282,1.63395733,109860.0,109850.0,0.49801824]
[1748375809488,1.96759502,109860.0,109850.0,0.49801824]
[1748375810382,1.97201733,109860.0,109850.0,0.49801824]
[1748375810587,1.91538171,109860.0,109850.0,0.49801106]
[1748375811196,1.91538171,109860.0,109850.0,0.24913354]
[1748375812191,1.91538171,109860.0,109850.0,0.24913247]
[1748375813197,1.91538171,109860.0,109850.0,0.24913137]
[1748375813399,1.91538171,109860.0,109850.0,0.24911992]
[1748375813788,1.91538171,109860.0,109850.0,0.24911901]
[1748375814394,1.91538171,109860.0,109850.0,0.23633581]
[1748375814599,1.91538171,109860.0,109850.0,0.20958104]
[1748375815100,1.97201733,109860.0,109850.0,0.22941543]
[1748375815692,1.97201733,109860.0,109850.0,0.41139173]
[1748375815891,1.97201733,109860.0,109850.0,0.22941467]
[1748375816398,0.54505793,109860.0,109850.0,0.66026578]
[1748375816587,0.54505793,109860.0,109850.0,0.71718963]
[1748375816588,0.92676231,109860.0,109850.0,0.71718963]
[1748375816788,1.10872201,109860.0,109850.0,0.71718963]
[1748375816993,1.10872201,109860.0,109850.0,0.69080975]
[1748375817195,0.68580201,109860.0,109850.0,1.05160975]
[1748375817393,1.10872201,109860.0,109850.0,1.06560346]
[1748375818501,1.10872201,109860.0,109850.0,1.06560315]
[1748375819000,1.10872201,109860.0,109850.0,1.06560076]
[1748375819301,1.10872201,109860.0,109850.0,1.06559867]
[1748375820094,1.10872201,109860.0,109850.0,1.06559858]
[1748375820897,1.10872201,109860.0,109850.0,1.05160975]
[1748375821095,1.10872201,109860.0,109850.0,1.06559688]
[1748375821602,1.10868201,109860.0,109850.0,1.06559688]
[1748375821802,1.10868201,109860.0,109850.0,1.06559551]
[1748375822194,0.40372231,109860.0,109850.0,1.10310182]
[1748375822494,0.92126201,109860.0,109850.0,1.11708748]
[1748375822702,0.92126201,109860.0,109850.0,1.11708358]
[1748375823000,0.92126201,109860.0,109850.0,1.11708345]
[1748375823707,0.92126201,109860.0,109850.0,1.11708365]
[1748375824200,0.92126201,109860.0,109850.0,1.10310182]
[1748375824400,0.73930231,109860.0,109850.0,1.10310182]
[1748375824703,0.92126211,109860.0,109850.0,1.1566849]
[1748375825000,0.92126211,109860.0,109850.0,1.15587547]
[1748375825303,0.92126211,109860.0,109850.0,1.16985395]
[1748375825896,0.73930231,109860.0,109850.0,1.16985383]
[1748375826097,0.92126201,109860.0,109850.0,1.16985383]
[1748375826297,0.92126201,109860.0,109850.0,1.16985376]
[1748375826506,1.00556201,109860.0,109850.0,1.10310182]
[1748375827310,0.82360231,109860.0,109850.0,1.10310182]
[1748375828706,1.00556211,109860.0,109850.0,0.8542243]
[1748375828909,1.45246211,109860.0,109850.0,0.4418647]
[1748375829208,1.53966211,109860.0,109850.0,0.3536847]
[1748375829404,1.53966211,109860.0,109850.0,0.3535647]
[1748375829600,1.53966211,109860.0,109850.0,0.3536847]
[1748375829803,1.53966211,109860.0,109850.0,0.38007961]
[1748375830410,1.78853963,109860.0,109850.0,0.29795981]
[1748375830607,1.78853963,109860.0,109850.0,0.29807981]
[1748375830915,1.53966211,109860.0,109850.0,0.29807981]
[1748375833406,1.78853963,109860.0,109850.0,0.2716849]
[1748375833604,1.78853963,109860.0,109850.0,0.2216849]
[1748375833807,1.78853963,109860.0,109850.0,0.1819765]
[1748375834120,1.78853963,109860.0,109850.0,0.24811567]
[1748375835708,1.53966211,109860.0,109850.0,0.24811567]
[1748375837709,1.53966211,109860.0,109850.0,0.06613917]
[1748375837916,1.53966211,109860.0,109850.0,0.24811567]
[1748375838525,1.53966211,109860.0,109850.0,0.06613917]
[1748375839512,1.53966211,109860.0,109850.0,0.24811567]
[1748375840020,1.5352398,109860.0,109850.0,0.24811567]
[1748375841424,1.78411732,109860.0,109850.0,0.24811567]
[1748375842313,1.78411732,109860.0,109850.0,0.06613917]
[1748375842819,1.78411732,109860.0,109850.0,0.06601917]
[1748375843021,1.78853963,109860.0,109850.0,0.02652685]
[1748375844113,1.78411732,109860.0,109850.0,0.02652685]
[1748375846721,1.78411732,109860.0,109850.0,0.0392176]
[1748375847012,1.78411732,109860.0,109850.0,0.02652685]
[1748375847220,1.78411732,109860.0,109850.0,0.04634181]
[1748375847525,1.78411732,109860.0,109850.0,0.05911458]
[1748375847732,1.78411732,109860.0,109850.0,0.01993496]
[1748375849015,1.78853963,109860.0,109850.0,0.01981496]
[1748375849216,1.78853963,109860.0,109850.0,0.03271329]
[1748375849427,1.78853963,109860.0,109850.0,0.01993496]
[1748375851214,1.78411732,109860.0,109850.0,0.01993496]
[1748375852929,1.5351198,109860.0,109850.0,0.01993496]
[1748375853110,1.5351198,109860.0,109850.0,0.18793496]
[1748375853317,1.5351198,109860.0,109850.0,0.21434181]
[1748375853934,1.78399732,109860.0,109850.0,0.21434181]
[1748375855824,1.5351198,109860.0,109850.0,0.21434164]
[1748375856429,1.78399732,109860.0,109850.0,0.21434164]
[1748375857311,1.88407732,109860.0,109850.0,0.21434164]
[1748375858122,1.88407732,109860.0,109850.0,0.29744164]
[1748375859125,1.6351998,109860.0,109850.0,0.29744164]
[1748375859429,1.88407732,109860.0,109850.0,0.29744164]
[1748375859634,1.88407732,109860.0,109850.0,0.27762685]
[1748375860323,1.2124398,109860.0,109850.0,0.27762685]
[1748375860524,1.6351998,109860.0,109850.0,0.27762685]
[1748375860728,1.1691323,109860.0,109850.0,0.29745585]
[1748375860915,1.6351998,109860.0,109850.0,0.27762685]
[1748375862131,1.4619001,109860.0,109850.0,0.74809329]
[1748375862332,1.46632241,109860.0,109850.0,0.74809329]
[1748375863226,1.46632241,109860.0,109850.0,0.49921577]
[1748375863422,1.46632241,109860.0,109850.0,0.51759543]
[1748375863622,1.55102241,109860.0,109850.0,0.51759543]
[1748375864226,1.55102241,109860.0,109850.0,0.49921577]